fUST/lending_fUST_20241225
["ID","MTS","AMOUNT","RATE_DAILY","PERIOD"]
[346584123,1735114259678,-516.45309308,0.00011503,2]
[346584124,1735114259687,-500.0,0.00011503,2]
[346584125,1735114259695,-1097.02,0.00011503,2]
[346584126,1735114259705,-500.0,0.00011503,2]
[346584127,1735114259714,-500.0,0.00011503,2]
[346584128,1735114259724,-504.09148116,0.00011503,2]
[346584129,1735114259733,-650.02,0.00011503,2]
[346584130,1735114259743,-500.0,0.00011503,2]
[346584131,1735114259752,-344.30310584,0.00011503,2]
[346584132,1735114259761,-500.0,0.00011503,2]
[346584133,1735114259770,-501.47433253,0.00011504,2]
[346584134,1735114259779,-502.60403765,0.00011504,2]
[346584135,1735114259788,-503.89358678,0.00011504,2]
[346584136,1735114259798,-1304.47,0.00011504,2]
[346584137,1735114259807,-502.22455953,0.00011504,2]
[346584138,1735114259816,-500.0,0.00011504,2]
[346584139,1735114259825,-500.0,0.00011504,2]
[346584140,1735114259834,-503.16403177,0.00011504,2]
[346584141,1735114259844,-502.90805648,0.00011504,2]
[346584142,1735114259854,-500.0,0.00011504,2]
[346584143,1735114259863,-503.27444767,0.00011504,2]
[346584144,1735114259872,-505.36686549,0.00011504,2]
[346584145,1735114259882,-626.28190428,0.00011504,2]
[346584146,1735114259891,-1144.76,0.00011504,2]
[346584147,1735114259900,-500.0,0.00011504,2]
[346584148,1735114259909,-193.28687725,0.00011504,2]
[346584149,1735114259919,-500.0,0.00011504,2]
[346584150,1735114259928,-500.0,0.00011504,2]
[346584151,1735114259939,-500.0,0.00011504,2]
[346584152,1735114259949,-151.0,0.00011504,2]
[346584153,1735114259958,-410.761462,0.00011504,2]
[346584154,1735114259967,-500.0,0.00011504,2]
[346584155,1735114259977,-410.761462,0.00011504,2]
[346584156,1735114259986,-575.80101755,0.00011504,2]
[346584157,1735114259996,-500.0,0.00011504,2]
[346584158,1735114260005,-500.0,0.00011504,2]
[346584159,1735114260015,-500.0,0.00011504,2]
[346584160,1735114260025,-500.0,0.00011504,2]
[346584161,1735114260035,-500.0,0.00011504,2]
[346584162,1735114260046,-500.0,0.00011504,2]
[346584163,1735114260056,-667.14,0.00011504,2]
[346584164,1735114260066,-500.0,0.00011504,2]
[346584165,1735114260076,-585.93,0.00011504,2]
[346584166,1735114260085,-190.25963825,0.00011505,2]
[346584167,1735114260095,-500.0,0.00011505,2]
[346584168,1735114260104,-500.0,0.00011521,2]
[346584169,1735114260113,-500.28430736,0.00011521,2]
[346584170,1735114260123,-500.0,0.00011551,2]
[346584171,1735114260132,-376.60902115,0.00011551,2]
[346584172,1735114260144,-500.0,0.0001159,2]
[346584173,1735114260154,-500.0,0.0001159,2]
[346584174,1735114260163,-500.16745495,0.0001159,2]
[346584175,1735114260175,-238.6690627,0.00011603,2]
[346584176,1735114260185,-500.45372108,0.00011615,2]
[346584177,1735114260194,-2053.91705388,0.00011676,2]
[346584178,1735114260203,-167.72000091,0.0001172,2]
[346584179,1735114260214,-447.035386,0.0001172,2]
[346584180,1735114260226,-447.035386,0.0001172,2]
[346584181,1735114260238,-151.0,0.0001172,2]
[346584182,1735114260249,-23478.77644488,0.00011721,2]
[346584183,1735114260259,-1200.648634,0.00011721,2]
[346584184,1735114260268,-1200.648634,0.00011721,2]
[346584185,1735114260278,-277.762112,0.00011721,2]
[346584186,1735114260288,-277.762112,0.00011721,2]
[346584187,1735114260297,-151.0,0.00011721,2]
[346584188,1735114260307,-410.761462,0.00011721,2]
[346584189,1735114260317,-410.761462,0.00011721,2]
[346584190,1735114260326,-222.575912,0.00011721,2]
[346584191,1735114260336,-186.212149,0.00011721,2]
[346584192,1735114260345,-391.027377,0.00011721,2]
[346584193,1735114260355,-391.02738554,0.00011721,2]
[346584194,1735114260365,-500.0,0.00011773,2]
[346584195,1735114260375,-444.20135676,0.00011773,2]
[346584196,1735114260385,-500.0,0.00011773,2]
[346584197,1735114260394,-1407.58,0.00011773,2]
[346584198,1735114260403,-500.0,0.00011773,2]
[346584199,1735114260413,-500.0,0.00011773,2]
[346584200,1735114260425,-500.0,0.00011773,2]
[346584201,1735114260434,-893.49,0.00011773,2]
[346584202,1735114260444,-500.0,0.00011774,2]
[346584203,1735114260453,-500.0,0.00011774,2]
[346584204,1735114260463,-500.0,0.00011774,2]
[346584205,1735114260473,-500.0,0.00011774,2]
[346584206,1735114260483,-500.0,0.00011774,2]
[346584207,1735114260492,-8652.18,0.00011774,2]
[346584208,1735114260502,-3266.33,0.00011774,2]
[346584209,1735114260512,-500.0,0.00011774,2]
[346584210,1735114260522,-2597.24,0.00011774,2]
[346584211,1735114260531,-500.0,0.00011774,2]
[346584212,1735114260541,-1498.99,0.00011774,2]
[346584213,1735114260550,-500.0,0.00011774,2]
[346584214,1735114260560,-1287.27,0.00011774,2]
[346584215,1735114260569,-759.15,0.00011774,2]
[346584216,1735114260579,-822.74,0.00011774,2]
[346584217,1735114260588,-552.19,0.00011774,2]
[346584218,1735114260598,-500.0,0.00011774,2]
[346584219,1735114260607,-608.11,0.00011775,2]
[346584220,1735114260616,-500.0,0.00011775,2]
[346584221,1735114260626,-548.54,0.00011775,2]
[346584222,1735114260635,-500.0,0.00011775,2]
[346584223,1735114260644,-500.0,0.00011775,2]
[346584224,1735114260653,-500.0,0.00011775,2]
[346584225,1735114260663,-500.0,0.00011775,2]
[346584226,1735114260674,-488.54873319,0.00011775,2]
[346584227,1735114260684,-618.9,0.00011775,2]
[346584228,1735114260693,-1124.02,0.00011775,2]
[346584229,1735114260704,-500.0,0.00011775,2]
[346584230,1735114260714,-794.49,0.00011775,2]
[346584231,1735114260724,-501.73,0.00011775,2]
[346584232,1735114260734,-168.0,0.00011775,2]
[346584233,1735114260744,-500.0,0.00011775,2]
[346584234,1735114260753,-551.51,0.00011775,2]
[346584235,1735114260763,-500.0,0.00011775,2]
[346584236,1735114260772,-500.0,0.00011775,2]
[346584237,1735114260781,-500.0,0.00011775,2]
[346584238,1735114260791,-500.0,0.00011775,2]
[346584239,1735114260800,-1113.08,0.00011775,2]
[346584240,1735114260809,-500.0,0.00011775,2]
[346584241,1735114260819,-2032.68,0.00011775,2]
[346584242,1735114260828,-853.08,0.00011775,2]
[346584243,1735114260838,-500.0,0.00011775,2]
[346584244,1735114260847,-500.0,0.00011775,2]
[346584245,1735114260857,-578.83,0.00011775,2]
[346584246,1735114260866,-604.2,0.00011775,2]
[346584247,1735114260876,-500.0,0.00011775,2]
[346584248,1735114260885,-500.0,0.00011775,2]
[346584249,1735114260895,-819.96,0.00011775,2]
[346584250,1735114260904,-500.0,0.00011775,4]
[346584251,1735114260914,-500.0,0.00011775,2]
[346584252,1735114260924,-1205.03,0.00011775,2]
[346584253,1735114260934,-544.0,0.00011775,2]
[346584254,1735114260944,-562.61,0.00011775,2]
[346584255,1735114260953,-500.0,0.00011775,2]
[346584256,1735114260962,-1763.4,0.00011775,2]
[346584257,1735114260971,-500.0,0.00011775,2]
[346584258,1735114260981,-1536.22,0.00011775,2]
[346584259,1735114260990,-500.0,0.00011775,2]
[346584260,1735114260999,-1257.99,0.00011775,2]
[346584261,1735114261008,-526.03,0.00011775,2]
[346584262,1735114261018,-500.0,0.00011775,2]
[346584263,1735114261029,-500.0,0.00011775,2]
[346584264,1735114261039,-500.0,0.00011775,2]
[346584265,1735114261049,-500.0,0.00011775,2]
[346584266,1735114261058,-500.0,0.00011775,2]
[346584267,1735114261067,-555.91,0.00011775,2]
[346584268,1735114261077,-634.78,0.00011775,2]
[346584269,1735114261086,-813.97,0.00011775,2]
[346584270,1735114261095,-500.0,0.00011775,2]
[346584271,1735114261105,-500.0,0.00011775,2]
[346584272,1735114261114,-970.83,0.00011775,2]
[346584273,1735114261124,-151.0,0.00011776,2]
[346584274,1735114261133,-151.0,0.00011776,2]
[346584275,1735114261142,-151.0,0.00011776,2]
[346584276,1735114261151,-151.0,0.00011776,2]
[346584277,1735114261161,-151.0,0.00011776,2]
[346584278,1735114261174,-447.035386,0.00011776,2]
[346584279,1735114261183,-447.035386,0.00011776,2]
[346584280,1735114261192,-151.0,0.00011776,2]
[346584281,1735114261201,-151.0,0.00011776,2]
[346584282,1735114261211,-410.761462,0.00011776,2]
[346584283,1735114261220,-410.761454,0.00011776,2]
[346584284,1735114261229,-257.424865,0.00011776,2]
[346584285,1735114261238,-696.01,0.00011776,2]
[346584286,1735114261248,-580.87,0.00011776,2]
[346584287,1735114261257,-500.0,0.00011776,2]
[346584288,1735114261267,-33146.83,0.00011776,2]
[346584289,1735114261276,-7815.83,0.00011776,2]
[346584290,1735114261286,-1286.05,0.00011776,2]
[346584291,1735114261295,-7639.36,0.00011776,2]
[346584292,1735114261304,-1203.15,0.00011776,2]
[346584293,1735114261313,-500.0,0.00011776,2]
[346584294,1735114261323,-500.0,0.00011777,2]
[346584295,1735114261333,-500.0,0.00011777,2]
[346584296,1735114261343,-1200.648634,0.00011777,2]
[346584297,1735114261353,-1200.648634,0.00011777,2]
[346584298,1735114261362,-500.0,0.00011777,2]
[346584299,1735114261371,-500.0,0.00011777,2]
[346584300,1735114261381,-589.09,0.00011777,2]
[346584301,1735114261391,-500.0,0.00011777,2]
[346584302,1735114261401,-151.0,0.00011777,2]
[346584303,1735114261410,-500.0,0.00011777,2]
[346584304,1735114261422,-151.0,0.00011777,2]
[346584305,1735114261432,-500.0,0.00011777,2]
[346584306,1735114261442,-500.0,0.00011777,2]
[346584307,1735114261452,-500.0,0.00011777,2]
[346584308,1735114261462,-151.0,0.00011777,2]
[346584309,1735114261471,-500.0,0.00011777,2]
[346584310,1735114261480,-500.0,0.00011777,2]
[346584311,1735114261490,-277.762112,0.00011777,2]
[346584312,1735114261500,-277.762112,0.00011777,2]
[346584313,1735114261510,-277.762112,0.00011777,2]
[346584314,1735114261520,-277.762112,0.00011777,2]
[346584315,1735114261530,-500.0,0.00011777,2]
[346584316,1735114261540,-607.37,0.00011777,2]
[346584317,1735114261550,-447.035386,0.00011777,2]
[346584318,1735114261559,-500.0,0.00011777,2]
[346584319,1735114261569,-447.035385,0.00011777,2]
[346584320,1735114261579,-268.797254,0.00011777,2]
[346584321,1735114261589,-510.3,0.00011777,2]
[346584322,1735114261599,-500.0,0.00011777,2]
[346584323,1735114261609,-500.0,0.00011777,2]
[346584324,1735114261619,-1007.94,0.00011777,2]
[346584325,1735114261628,-500.0,0.00011777,2]
[346584326,1735114261638,-500.0,0.00011777,2]
[346584327,1735114261648,-500.0,0.00011777,2]
[346584328,1735114261657,-782.01,0.00011777,2]
[346584329,1735114261669,-1009.9,0.00011777,2]
[346584330,1735114261678,-754.17,0.00011777,2]
[346584331,1735114261688,-601.76,0.00011777,2]
[346584332,1735114261697,-500.0,0.00011777,2]
[346584333,1735114261707,-500.0,0.00011777,2]
[346584334,1735114261716,-500.0,0.00011777,2]
[346584335,1735114261725,-517.01,0.00011777,2]
[346584336,1735114261735,-500.0,0.00011777,2]
[346584337,1735114261744,-500.0,0.00011777,2]
[346584338,1735114261753,-552.58,0.00011777,2]
[346584339,1735114261763,-500.0,0.00011777,2]
[346584340,1735114261772,-500.0,0.00011777,2]
[346584341,1735114261782,-1097.02,0.00011777,2]
[346584342,1735114261791,-500.0,0.00011777,2]
[346584343,1735114261801,-650.02,0.00011777,2]
[346584344,1735114261809,-500.0,0.00011777,2]
[346584345,1735114261819,-1304.47,0.00011778,2]
[346584346,1735114261828,-384.19448337,0.00011778,2]
[346584347,1735114261837,-1144.76,0.00011778,2]
[346584348,1735114261847,-500.0,0.00011778,2]
[346584349,1735114261858,-504.10523663,0.00011778,2]
[346584350,1735114261867,-501.81324936,0.00011778,2]
[346584351,1735114261876,-503.02710697,0.00011778,2]
[346584352,1735114261886,-500.0,0.00011778,2]
[346584353,1735114261895,-500.0,0.00011778,2]
[346584354,1735114261905,-500.0,0.00011778,2]
[346584355,1735114261914,-500.0,0.00011778,2]
[346584356,1735114261925,-500.0,0.00011778,2]
[346584357,1735114261934,-500.0,0.00011778,2]
[346584358,1735114261943,-667.14,0.00011778,2]
[346584359,1735114261953,-474.42451569,0.00011778,2]
[346584360,1735114261962,-585.93,0.00011778,2]
[346584361,1735114261971,-500.0,0.00011779,2]
[346584362,1735114261981,-277.762112,0.00011779,2]
[346584363,1735114261990,-277.76210705,0.00011779,2]
[346584364,1735114262000,-151.0,0.0001178,2]
[346584365,1735114262009,-151.0,0.0001178,2]
[346584366,1735114262018,-257.237748,0.0001178,2]
[346584367,1735114262029,-151.0,0.000118,2]
[346584368,1735114262038,-500.77422775,0.00011821,2]
[346584369,1735114262048,-500.25691455,0.00011821,2]
[346584370,1735114262058,-1000.0,0.00011821,2]
[346584371,1735114262067,-512.72483571,0.00011821,2]
[346584372,1735114262077,-500.0,0.00011821,2]
[346584373,1735114262087,-500.39441498,0.00011821,2]
[346584374,1735114262096,-1000.0,0.00011821,2]
[346584375,1735114262106,-500.32879532,0.00011826,2]
[346584376,1735114262116,-500.0,0.00011826,2]
[346584377,1735114262126,-1200.648634,0.00011876,2]
[346584378,1735114262143,-1200.648634,0.00011876,2]
[346584379,1735114262152,-151.0,0.000119,2]
[346584380,1735114262162,-420.0,0.00012033,2]
[346584381,1735114262175,-420.0,0.00012046,2]
[346584382,1735114262184,-500.0,0.00012047,2]
[346584383,1735114262193,-1407.58,0.00012047,2]
[346584384,1735114262204,-500.0,0.00012047,2]
[346584385,1735114262217,-500.0,0.00012047,2]
[346584386,1735114262226,-500.0,0.00012047,2]
[346584387,1735114262236,-893.49,0.00012047,2]
[346584388,1735114262246,-500.0,0.00012048,2]
[346584389,1735114262255,-185.33377202,0.00012048,2]
[346584390,1735114262265,-500.0,0.00012048,2]
[346584391,1735114262276,-500.0,0.00012048,2]
[346584392,1735114262286,-500.0,0.00012048,2]
[346584393,1735114262295,-8652.18,0.00012048,2]
[346584394,1735114262306,-3266.33,0.00012048,2]
[346584395,1735114262315,-500.0,0.00012048,2]
[346584396,1735114262325,-2597.24,0.00012048,2]
[346584397,1735114262335,-1498.99,0.00012048,2]
[346584398,1735114262345,-500.0,0.00012048,2]
[346584399,1735114262355,-1287.27,0.00012048,2]
[346584400,1735114262365,-759.15,0.00012048,2]
[346584401,1735114262374,-822.74,0.00012048,2]
[346584402,1735114262385,-552.19,0.00012048,2]
[346584403,1735114262395,-548.54,0.00012049,2]
[346584404,1735114262404,-500.0,0.00012049,2]
[346584405,1735114262417,-500.0,0.00012049,2]
[346584406,1735114262428,-500.0,0.00012049,2]
[346584407,1735114262548,-500.0,0.00012049,2]
[346584408,1735114262558,-618.9,0.00012049,2]
[346584409,1735114262568,-1124.02,0.00012049,2]
[346584410,1735114262578,-500.0,0.00012049,2]
[346584411,1735114262589,-794.49,0.00012049,2]
[346584412,1735114262598,-501.73,0.00012049,2]
[346584413,1735114262608,-168.0,0.00012049,2]
[346584414,1735114262618,-500.0,0.00012049,2]
[346584415,1735114262627,-551.51,0.00012049,2]
[346584416,1735114262637,-406.0601775,0.00012049,2]
[346584417,1735114262647,-500.0,0.00012049,2]
[346584418,1735114262657,-500.0,0.00012049,2]
[346584419,1735114262667,-500.0,0.00012049,2]
[346584420,1735114262678,-1113.08,0.00012049,2]
[346584421,1735114262687,-500.0,0.00012049,2]
[346584422,1735114262697,-2032.68,0.00012049,2]
[346584423,1735114262706,-853.08,0.00012049,2]
[346584424,1735114262716,-500.0,0.00012049,2]
[346584425,1735114262725,-500.0,0.00012049,2]
[346584426,1735114262734,-578.83,0.00012049,2]
[346584427,1735114262744,-604.2,0.00012049,2]
[346584428,1735114262753,-500.0,0.00012049,2]
[346584429,1735114262762,-524.49053574,0.00012049,2]
[346584430,1735114262772,-819.96,0.00012049,2]
[346584431,1735114262781,-500.0,0.00012049,4]
[346584432,1735114262790,-196.4803071,0.00012049,2]
[346584433,1735114262799,-1205.03,0.00012049,2]
[346584434,1735114262809,-544.0,0.00012049,2]
[346584435,1735114262818,-562.61,0.00012049,2]
[346584436,1735114262827,-1763.4,0.00012049,2]
[346584437,1735114262836,-500.0,0.00012049,2]
[346584438,1735114262846,-1536.22,0.00012049,2]
[346584439,1735114262855,-500.0,0.00012049,2]
[346584440,1735114262864,-1257.99,0.00012049,2]
[346584441,1735114262874,-526.03,0.00012049,2]
[346584442,1735114262883,-500.0,0.00012049,2]
[346584443,1735114262893,-500.0,0.00012049,2]
[346584444,1735114262902,-500.0,0.00012049,2]
[346584445,1735114262912,-500.0,0.00012049,2]
[346584446,1735114262922,-500.0,0.00012049,2]
[346584447,1735114262932,-555.91,0.00012049,2]
[346584448,1735114262941,-634.78,0.00012049,2]
[346584449,1735114262950,-813.97,0.00012049,2]
[346584450,1735114262960,-500.0,0.00012049,2]
[346584451,1735114262969,-500.0,0.00012049,2]
[346584452,1735114262979,-970.83,0.00012049,2]
[346584453,1735114262988,-696.01,0.0001205,2]
[346584454,1735114262998,-580.87,0.0001205,2]
[346584455,1735114263007,-500.0,0.0001205,2]
[346584456,1735114263017,-33146.83,0.0001205,2]
[346584457,1735114263028,-7815.83,0.0001205,2]
[346584458,1735114263038,-1286.05,0.0001205,2]
[346584459,1735114263048,-7639.36,0.0001205,2]
[346584460,1735114263058,-1203.15,0.0001205,2]
[346584461,1735114263068,-500.0,0.0001205,2]
[346584462,1735114263078,-159.520838,0.00012051,2]
[346584463,1735114263088,-500.0,0.00012051,2]
[346584464,1735114263098,-500.0,0.00012051,2]
[346584465,1735114263108,-1200.648634,0.00012051,2]
[346584466,1735114263118,-1200.648634,0.00012051,2]
[346584467,1735114263128,-500.0,0.00012051,2]
[346584468,1735114263142,-500.0,0.00012051,2]
[346584469,1735114263152,-589.09,0.00012051,2]
[346584470,1735114263162,-500.0,0.00012051,2]
[346584471,1735114263173,-151.0,0.00012051,2]
[346584472,1735114263183,-500.0,0.00012051,2]
[346584473,1735114263193,-151.0,0.00012051,2]
[346584474,1735114263203,-500.0,0.00012051,2]
[346584475,1735114263214,-500.0,0.00012051,2]
[346584476,1735114263224,-500.0,0.00012051,2]
[346584477,1735114263234,-500.0,0.00012051,2]
[346584478,1735114263244,-500.0,0.00012051,2]
[346584479,1735114263254,-500.0,0.00012051,2]
[346584480,1735114263264,-607.37,0.00012051,2]
[346584481,1735114263275,-500.0,0.00012051,2]
[346584482,1735114263286,-510.3,0.00012051,2]
[346584483,1735114263296,-500.0,0.00012051,2]
[346584484,1735114263306,-500.0,0.00012051,2]
[346584485,1735114263317,-1007.94,0.00012051,2]
[346584486,1735114263327,-500.0,0.00012051,2]
[346584487,1735114263337,-500.0,0.00012051,2]
[346584488,1735114263348,-500.0,0.00012051,2]
[346584489,1735114263358,-782.01,0.00012051,2]
[346584490,1735114263369,-1009.9,0.00012051,2]
[346584491,1735114263379,-754.17,0.00012051,2]
[346584492,1735114263389,-601.76,0.00012051,2]
[346584493,1735114263398,-500.0,0.00012051,2]
[346584494,1735114263409,-500.0,0.00012051,2]
[346584495,1735114263420,-500.0,0.00012051,2]
[346584496,1735114263430,-517.01,0.00012051,2]
[346584497,1735114263440,-500.0,0.00012051,2]
[346584498,1735114263450,-500.0,0.00012051,2]
[346584499,1735114263459,-552.58,0.00012051,2]
[346584500,1735114263469,-500.0,0.00012051,2]
[346584501,1735114263479,-500.0,0.00012051,2]
[346584502,1735114263489,-1097.02,0.00012051,2]
[346584503,1735114263499,-500.0,0.00012051,2]
[346584504,1735114263509,-650.02,0.00012051,2]
[346584505,1735114263518,-500.0,0.00012051,2]
[346584506,1735114263527,-151.0,0.00012052,2]
[346584507,1735114263537,-1304.47,0.00012052,2]
[346584508,1735114263547,-151.0,0.00012052,2]
[346584509,1735114263557,-151.0,0.00012052,2]
[346584510,1735114263568,-1144.76,0.00012052,2]
[346584511,1735114263577,-500.0,0.00012052,2]
[346584512,1735114263588,-500.0,0.00012052,2]
[346584513,1735114263598,-667.14,0.00012052,2]
[346584514,1735114263608,-585.93,0.00012052,2]
[346584515,1735114263619,-408.76101797,0.00012053,2]
[346584516,1735114263629,-1001.34468045,0.00012099,2]
[346584517,1735114263638,-1000.0,0.00012138,2]
[346584518,1735114263648,-500.44984647,0.00012138,2]
[346584519,1735114263658,-500.0,0.00012146,2]
[346584520,1735114263667,-500.0,0.00012146,2]
[346584521,1735114263680,-500.0,0.00012146,2]
[346584522,1735114263690,-500.0,0.00012146,2]
[346584523,1735114263700,-500.0,0.00012146,2]
[346584524,1735114263710,-500.0,0.00012146,2]
[346584525,1735114263720,-500.0,0.00012146,2]
[346584526,1735114263730,-535.57,0.00012146,2]
[346584527,1735114263740,-1200.648634,0.00012146,2]
[346584528,1735114263750,-1200.648634,0.00012146,2]
[346584529,1735114263760,-500.47495219,0.00012321,2]
[346584530,1735114263770,-500.0,0.00012321,2]
[346584531,1735114263780,-1407.58,0.00012321,2]
[346584532,1735114263791,-500.0,0.00012321,2]
[346584533,1735114263800,-500.0,0.00012321,2]
[346584534,1735114263810,-500.0,0.00012321,2]
[346584535,1735114263819,-893.49,0.00012321,2]
[346584536,1735114263829,-500.0,0.00012322,2]
[346584537,1735114263838,-500.0,0.00012322,2]
[346584538,1735114263848,-622.98642493,0.00012322,2]
[346584539,1735114263857,-500.0,0.00012322,2]
[346584540,1735114263867,-8652.18,0.00012322,2]
[346584541,1735114263877,-3266.33,0.00012322,2]
[346584542,1735114263887,-2597.24,0.00012322,2]
[346584543,1735114263896,-1498.99,0.00012322,2]
[346584544,1735114263906,-500.0,0.00012322,2]
[346584545,1735114263916,-1287.27,0.00012322,2]
[346584546,1735114263927,-759.15,0.00012322,2]
[346584547,1735114263937,-822.74,0.00012322,2]
[346584548,1735114263947,-552.19,0.00012322,2]
[346584549,1735114263956,-548.54,0.00012323,2]
[346584550,1735114263966,-500.0,0.00012323,2]
[346584551,1735114263975,-500.0,0.00012323,2]
[346584552,1735114263985,-500.0,0.00012323,2]
[346584553,1735114263995,-618.9,0.00012323,2]
[346584554,1735114264004,-1124.02,0.00012323,2]
[346584555,1735114264014,-500.0,0.00012323,2]
[346584556,1735114264026,-794.49,0.00012323,2]
[346584557,1735114264036,-501.73,0.00012323,2]
[346584558,1735114264046,-168.0,0.00012323,2]
[346584559,1735114264055,-321.24881328,0.00012323,2]
[346584560,1735114264065,-551.51,0.00012323,2]
[346584561,1735114264074,-500.0,0.00012323,2]
[346584562,1735114264084,-500.0,0.00012323,2]
[346584563,1735114264094,-500.0,0.00012323,2]
[346584564,1735114264104,-1113.08,0.00012323,2]
[346584565,1735114264114,-349.38651464,0.00012323,2]
[346584566,1735114264124,-2032.68,0.00012323,2]
[346584567,1735114264137,-853.08,0.00012323,2]
[346584568,1735114264147,-640.30666777,0.00012323,2]
[346584569,1735114264157,-500.0,0.00012323,2]
[346584570,1735114264167,-578.83,0.00012323,2]
[346584571,1735114264179,-604.2,0.00012323,2]
[346584572,1735114264189,-500.0,0.00012323,2]
[346584573,1735114264199,-819.96,0.00012323,2]
[346584574,1735114264209,-500.0,0.00012323,4]
[346584575,1735114264220,-1205.03,0.00012323,2]
[346584576,1735114264230,-544.0,0.00012323,2]
[346584577,1735114264240,-562.61,0.00012323,2]
[346584578,1735114264250,-1763.4,0.00012323,2]
[346584579,1735114264259,-500.0,0.00012323,2]
[346584580,1735114264269,-1536.22,0.00012323,2]
[346584581,1735114264279,-500.0,0.00012323,2]
[346584582,1735114264289,-1257.99,0.00012323,2]
[346584583,1735114264299,-526.03,0.00012323,2]
[346584584,1735114264308,-500.0,0.00012323,2]
[346584585,1735114264317,-500.0,0.00012323,2]
[346584586,1735114264327,-500.0,0.00012323,2]
[346584587,1735114264336,-500.0,0.00012323,2]
[346584588,1735114264346,-555.91,0.00012323,2]
[346584589,1735114264355,-634.78,0.00012323,2]
[346584590,1735114264364,-813.97,0.00012323,2]
[346584591,1735114264373,-500.0,0.00012323,2]
[346584592,1735114264383,-500.0,0.00012323,2]
[346584593,1735114264392,-970.83,0.00012323,2]
[346584594,1735114264402,-696.01,0.00012324,2]
[346584595,1735114264411,-580.87,0.00012324,2]
[346584596,1735114264421,-500.0,0.00012324,2]
[346584597,1735114264431,-33146.83,0.00012324,2]
[346584598,1735114264441,-7815.83,0.00012324,2]
[346584599,1735114264451,-1286.05,0.00012324,2]
[346584600,1735114264460,-7639.36,0.00012324,2]
[346584601,1735114264469,-1203.15,0.00012324,2]
[346584602,1735114264478,-500.0,0.00012324,2]
[346584603,1735114264488,-151.0,0.00012325,2]
[346584604,1735114264497,-500.0,0.00012325,2]
[346584605,1735114264507,-500.0,0.00012325,2]
[346584606,1735114264516,-1200.648634,0.00012325,2]
[346584607,1735114264525,-1200.648634,0.00012325,2]
[346584608,1735114264534,-500.0,0.00012325,2]
[346584609,1735114264543,-500.0,0.00012325,2]
[346584610,1735114264553,-589.09,0.00012325,2]
[346584611,1735114264562,-500.0,0.00012325,2]
[346584612,1735114264572,-500.0,0.00012325,2]
[346584613,1735114264581,-500.0,0.00012325,2]
[346584614,1735114264591,-500.0,0.00012325,2]
[346584615,1735114264600,-500.0,0.00012325,2]
[346584616,1735114264610,-500.0,0.00012325,2]
[346584617,1735114264619,-500.0,0.00012325,2]
[346584618,1735114264629,-500.0,0.00012325,2]
[346584619,1735114264639,-607.37,0.00012325,2]
[346584620,1735114264649,-500.0,0.00012325,2]
[346584621,1735114264659,-510.3,0.00012325,2]
[346584622,1735114264668,-500.0,0.00012325,2]